[Event "Titled Tuesday Blitz July 11 Early 2023"]
[White "infinitypoint"]
[Black "Matveeva, Olga"]
[BlackFideId "24107018"]
[WhiteElo "2565"]
[BlackElo "2427"]
[Result "1-0"]
[Round "5"]
[TimeControl "180+2"]
[Date "2023.07.11"]
[WhiteClock "0:00:21"]
[BlackClock "0:00:00"]
[Board "104"]

1. d4 {[%clk 0:03:00]}  Nf6 {[%clk 0:02:58]} 2. c4 {[%clk 0:03:00]}  e6 {[%clk 0:02:58]} 3. Nc3 {[%clk 0:03:00]}  Bb4 {[%clk 0:02:58]} 4. Qc2 {[%clk 0:02:58]}  d5 {[%clk 0:02:57]} 5. a3 {[%clk 0:02:57]}  Be7 {[%clk 0:02:54]} 6. cxd5 {[%clk 0:02:53]}  exd5 {[%clk 0:02:55]} 7. Bg5 {[%clk 0:02:52]}  O-O {[%clk 0:02:53]} 8. e3 {[%clk 0:02:52]}  c6 {[%clk 0:02:52]} 9. Bd3 {[%clk 0:02:52]}  Nbd7 {[%clk 0:02:50]} 10. Nge2 {[%clk 0:02:52]}  a5 {[%clk 0:02:49]} 11. O-O {[%clk 0:02:51]}  Re8 {[%clk 0:02:48]} 12. f3 {[%clk 0:02:50]}  h6 {[%clk 0:02:47]} 13. Bh4 {[%clk 0:02:50]}  c5 {[%clk 0:02:41]} 14. dxc5 {[%clk 0:02:43]}  Bxc5 {[%clk 0:02:39]} 15. Nxd5 {[%clk 0:02:34]}  Bxe3+ {[%clk 0:01:35]} 16. Nxe3 {[%clk 0:02:29]}  Rxe3 {[%clk 0:01:35]} 17. Rad1 {[%clk 0:02:26]}  Qe7 {[%clk 0:01:30]} 18. Bf2 {[%clk 0:02:17]}  Re6 {[%clk 0:01:28]} 19. Nd4 {[%clk 0:02:16]}  Re5 {[%clk 0:01:23]} 20. Nf5 {[%clk 0:02:16]}  Qf8 {[%clk 0:01:18]} 21. Bd4 {[%clk 0:02:15]}  Rd5 {[%clk 0:01:16]} 22. Bc4 {[%clk 0:02:06]}  Rxd4 {[%clk 0:00:59]} 23. Rxd4 {[%clk 0:02:03]}  Ne5 {[%clk 0:00:56]} 24. Nxh6+ {[%clk 0:01:51]}  gxh6 {[%clk 0:00:51]} 25. Qg6+ {[%clk 0:01:50]}  Nxg6 {[%clk 0:00:46]} 26. Rfd1 {[%clk 0:01:49]}  Qc5 {[%clk 0:00:41]} 27. Kh1 {[%clk 0:01:49]}  Bf5 {[%clk 0:00:39]} 28. h4 {[%clk 0:01:45]}  Re8 {[%clk 0:00:36]} 29. R1d2 {[%clk 0:01:40]}  Ne5 {[%clk 0:00:35]} 30. Be2 {[%clk 0:01:38]}  Qc1+ {[%clk 0:00:31]} 31. Kh2 {[%clk 0:01:37]}  Qe1 {[%clk 0:00:30]} 32. Bb5 {[%clk 0:01:34]}  Qxh4+ {[%clk 0:00:29]} 33. Rxh4 {[%clk 0:01:34]}  Rc8 {[%clk 0:00:25]} 34. Rf4 {[%clk 0:01:30]}  Rc5 {[%clk 0:00:07]} 35. Rxf5 {[%clk 0:00:53]}  Neg4+ {[%clk 0:00:06]} 36. fxg4 {[%clk 0:00:54]}  Nxg4+ {[%clk 0:00:07]} 37. Kg3 {[%clk 0:00:54]}  Rxf5 {[%clk 0:00:07]} 38. Bd7 {[%clk 0:00:52]}  Rg5 {[%clk 0:00:04]} 39. Bxg4 {[%clk 0:00:51]}  h5 {[%clk 0:00:04]} 40. Kh4 {[%clk 0:00:50]}  Rxg4+ {[%clk 0:00:03]} 41. Kxh5 {[%clk 0:00:50]}  Rg3 {[%clk 0:00:04]} 42. Kh4 {[%clk 0:00:50]}  Rg6 {[%clk 0:00:03]} 43. g4 {[%clk 0:00:50]}  Kg7 {[%clk 0:00:03]} 44. Rd5 {[%clk 0:00:48]}  Rb6 {[%clk 0:00:03]} 45. Rxa5 {[%clk 0:00:45]}  Rxb2 {[%clk 0:00:02]} 46. Rd5 {[%clk 0:00:43]}  Ra2 {[%clk 0:00:03]} 47. Rd3 {[%clk 0:00:43]}  Ra1 {[%clk 0:00:03]} 48. Kg3 {[%clk 0:00:43]}  Ra2 {[%clk 0:00:03]} 49. Rb3 {[%clk 0:00:42]}  Ra1 {[%clk 0:00:03]} 50. Kf4 {[%clk 0:00:42]}  Ra2 {[%clk 0:00:03]} 51. Ke4 {[%clk 0:00:42]}  Ra1 {[%clk 0:00:03]} 52. Kd5 {[%clk 0:00:39]}  Rg1 {[%clk 0:00:03]} 53. Rb4 {[%clk 0:00:39]}  Ra1 {[%clk 0:00:02]} 54. a4 {[%clk 0:00:38]}  Kf6 {[%clk 0:00:02]} 55. Kd6 {[%clk 0:00:37]}  Kg5 {[%clk 0:00:02]} 56. Kc7 {[%clk 0:00:37]}  f5 {[%clk 0:00:01]} 57. gxf5 {[%clk 0:00:34]}  Kxf5 {[%clk 0:00:02]} 58. Kxb7 {[%clk 0:00:33]}  Ke6 {[%clk 0:00:03]} 59. Rd4 {[%clk 0:00:30]}  Ke5 {[%clk 0:00:02]} 60. Rb4 {[%clk 0:00:28]}  Kd6 {[%clk 0:00:02]} 61. Kb6 {[%clk 0:00:27]}  Kd7 {[%clk 0:00:02]} 62. Kb7 {[%clk 0:00:25]}  Ra2 {[%clk 0:00:01]} 63. Rd4+ {[%clk 0:00:24]}  Ke6 {[%clk 0:00:00]} 64. Kc6 {[%clk 0:00:21]} 1-0


[Site "https://www.chess.com"]

[Event "Titled Tuesday Blitz July 11 Early 2023"]
[White "Domingo Nunez, Alejandro"]
[Black "Stork, Oliver"]
[WhiteFideId "22245561"]
[BlackFideId "12955728"]
[WhiteElo "2564"]
[BlackElo "2426"]
[Result "0-1"]
[Round "5"]
[TimeControl "180+2"]
[Date "2023.07.11"]
[WhiteClock "0:00:00"]
[BlackClock "0:00:14"]
[Board "105"]

1. Nf3 {[%clk 0:03:00]}  d5 {[%clk 0:02:59]} 2. g3 {[%clk 0:02:57]}  Nd7 {[%clk 0:02:57]} 3. d4 {[%clk 0:02:57]}  Nb6 {[%clk 0:02:56]} 4. Bg2 {[%clk 0:02:57]}  Bf5 {[%clk 0:02:56]} 5. Nh4 {[%clk 0:02:57]}  Be4 {[%clk 0:02:49]} 6. f3 {[%clk 0:02:57]}  Bg6 {[%clk 0:02:49]} 7. O-O {[%clk 0:02:57]}  Nf6 {[%clk 0:02:48]} 8. Nxg6 {[%clk 0:02:56]}  hxg6 {[%clk 0:02:48]} 9. e4 {[%clk 0:02:51]}  e6 {[%clk 0:02:48]} 10. e5 {[%clk 0:02:09]}  Nfd7 {[%clk 0:02:45]} 11. c3 {[%clk 0:02:03]}  c5 {[%clk 0:02:43]} 12. f4 {[%clk 0:01:59]}  Rc8 {[%clk 0:02:04]} 13. a4 {[%clk 0:01:50]}  Nc4 {[%clk 0:01:58]} 14. b3 {[%clk 0:01:33]}  Na5 {[%clk 0:01:56]} 15. Kh1 {[%clk 0:00:59]}  cxd4 {[%clk 0:01:34]} 16. cxd4 {[%clk 0:01:00]}  Qb6 {[%clk 0:01:29]} 17. Nd2 {[%clk 0:00:19]}  Qxd4 {[%clk 0:01:17]} 18. Rb1 {[%clk 0:00:19]}  Qd3 {[%clk 0:01:13]} 19. Rf3 {[%clk 0:00:19]}  Qa6 {[%clk 0:01:08]} 20. b4 {[%clk 0:00:15]}  Nc4 {[%clk 0:01:01]} 21. b5 {[%clk 0:00:16]}  Qb6 {[%clk 0:00:59]} 22. Nxc4 {[%clk 0:00:11]}  Rxc4 {[%clk 0:00:58]} 23. Bd2 {[%clk 0:00:10]}  Be7 {[%clk 0:00:55]} 24. a5 {[%clk 0:00:05]}  Qd8 {[%clk 0:00:49]} 25. b6 {[%clk 0:00:03]}  axb6 {[%clk 0:00:47]} 26. axb6 {[%clk 0:00:03]}  O-O {[%clk 0:00:29]} 27. Rfb3 {[%clk 0:00:03]}  Nc5 {[%clk 0:00:29]} 28. Rb5 {[%clk 0:00:02]}  Nd3 {[%clk 0:00:28]} 29. Be3 {[%clk 0:00:02]}  Nc5 {[%clk 0:00:23]} 30. Bf1 {[%clk 0:00:01]}  Rc3 {[%clk 0:00:15]} 31. Bd4 {[%clk 0:00:00]}  Ne4 {[%clk 0:00:14]} 0-1


[Site "https://www.chess.com"]

[Event "Titled Tuesday Blitz July 11 Early 2023"]
[White "Aggelis, Nikolaos"]
[Black "Yurasova, Daria"]
[WhiteFideId "4213220"]
[BlackFideId "34146919"]
[WhiteElo "2564"]
[BlackElo "2426"]
[Result "1/2-1/2"]
[Round "5"]
[TimeControl "180+2"]
[Date "2023.07.11"]
[WhiteClock "0:00:33"]
[BlackClock "0:00:48"]
[Board "106"]

1. c4 {[%clk 0:02:33]}  e5 {[%clk 0:02:58]} 2. g3 {[%clk 0:02:29]}  Nf6 {[%clk 0:02:55]} 3. Bg2 {[%clk 0:02:29]}  Be7 {[%clk 0:02:53]} 4. Nc3 {[%clk 0:02:29]}  O-O {[%clk 0:02:53]} 5. e3 {[%clk 0:02:29]}  d6 {[%clk 0:02:54]} 6. Nge2 {[%clk 0:02:30]}  c6 {[%clk 0:02:55]} 7. O-O {[%clk 0:02:30]}  Be6 {[%clk 0:02:52]} 8. d3 {[%clk 0:02:28]}  d5 {[%clk 0:02:50]} 9. b3 {[%clk 0:02:24]}  Nbd7 {[%clk 0:02:50]} 10. Bb2 {[%clk 0:02:22]}  a5 {[%clk 0:02:50]} 11. cxd5 {[%clk 0:02:15]}  cxd5 {[%clk 0:02:50]} 12. d4 {[%clk 0:02:12]}  e4 {[%clk 0:02:49]} 13. Nf4 {[%clk 0:02:12]}  Qb6 {[%clk 0:02:43]} 14. Na4 {[%clk 0:02:11]}  Qa6 {[%clk 0:02:39]} 15. Rc1 {[%clk 0:02:02]}  Rac8 {[%clk 0:02:36]} 16. Nxe6 {[%clk 0:01:58]}  Qxe6 {[%clk 0:02:32]} 17. Qe2 {[%clk 0:01:57]}  h5 {[%clk 0:02:29]} 18. Qb5 {[%clk 0:01:56]}  h4 {[%clk 0:02:15]} 19. Qxb7 {[%clk 0:01:56]}  Rxc1 {[%clk 0:02:13]} 20. Rxc1 {[%clk 0:01:57]}  h3 {[%clk 0:02:13]} 21. Bf1 {[%clk 0:01:53]}  Qf5 {[%clk 0:02:11]} 22. Bc3 {[%clk 0:01:36]}  Ng4 {[%clk 0:01:59]} 23. Be1 {[%clk 0:01:34]}  Bg5 {[%clk 0:01:22]} 24. Bxh3 {[%clk 0:01:32]}  Ndf6 {[%clk 0:01:23]} 25. Rc2 {[%clk 0:01:19]}  Qh7 {[%clk 0:01:16]} 26. Bxg4 {[%clk 0:01:08]}  Nxg4 {[%clk 0:01:17]} 27. h4 {[%clk 0:01:06]}  Bxh4 {[%clk 0:01:05]} 28. gxh4 {[%clk 0:01:07]}  Qxh4 {[%clk 0:01:06]} 29. Qc7 {[%clk 0:01:00]}  Nxe3 {[%clk 0:01:06]} 30. fxe3 {[%clk 0:00:55]}  Qxe1+ {[%clk 0:01:05]} 31. Kg2 {[%clk 0:00:56]}  Qxe3 {[%clk 0:01:05]} 32. Qc3 {[%clk 0:00:43]}  Qg5+ {[%clk 0:00:57]} 33. Qg3 {[%clk 0:00:43]}  Qf6 {[%clk 0:00:58]} 34. Qe5 {[%clk 0:00:33]}  Qg6+ {[%clk 0:00:56]} 35. Qg3 {[%clk 0:00:33]}  Qf6 {[%clk 0:00:56]} 36. Qe5 {[%clk 0:00:33]}  Qg6+ {[%clk 0:00:48]} 37. Qg3 {[%clk 0:00:33]}  Qf6 {[%clk 0:00:48]} 1/2-1/2


[Site "https://www.chess.com"]

[Event "Titled Tuesday Blitz July 11 Early 2023"]
[White "Siniauski, Artsiom"]
[Black "Topalov, Aleksandar"]
[WhiteFideId "13512269"]
[BlackFideId "925659"]
[WhiteElo "2548"]
[BlackElo "2407"]
[Result "1-0"]
[Round "5"]
[TimeControl "180+2"]
[Date "2023.07.11"]
[WhiteClock "0:00:06"]
[BlackClock "0:00:00"]
[Board "110"]

1. e3 {[%clk 0:02:55]}  Nf6 {[%clk 0:02:54]} 2. d4 {[%clk 0:02:54]}  g6 {[%clk 0:02:48]} 3. Bd3 {[%clk 0:02:54]}  Bg7 {[%clk 0:02:48]} 4. f4 {[%clk 0:02:54]}  O-O {[%clk 0:02:48]} 5. Nf3 {[%clk 0:02:55]}  d6 {[%clk 0:02:46]} 6. O-O {[%clk 0:02:54]}  Nbd7 {[%clk 0:02:46]} 7. Nc3 {[%clk 0:02:50]}  c5 {[%clk 0:02:34]} 8. Ne2 {[%clk 0:02:47]}  b6 {[%clk 0:02:24]} 9. c3 {[%clk 0:02:44]}  Bb7 {[%clk 0:02:21]} 10. Bd2 {[%clk 0:02:45]}  e5 {[%clk 0:02:07]} 11. fxe5 {[%clk 0:02:44]}  dxe5 {[%clk 0:02:07]} 12. Bc4 {[%clk 0:02:23]}  Ne4 {[%clk 0:01:45]} 13. a4 {[%clk 0:02:18]}  a6 {[%clk 0:01:41]} 14. Be1 {[%clk 0:02:10]}  Bh6 {[%clk 0:01:34]} 15. Qd3 {[%clk 0:02:05]}  Nd6 {[%clk 0:01:17]} 16. Bh4 {[%clk 0:01:02]}  e4 {[%clk 0:01:03]} 17. Qd1 {[%clk 0:00:25]}  g5 {[%clk 0:00:59]} 18. Bg3 {[%clk 0:00:16]}  exf3 {[%clk 0:00:59]} 19. Bxd6 {[%clk 0:00:16]}  fxe2 {[%clk 0:00:59]} 20. Qxe2 {[%clk 0:00:17]}  Nf6 {[%clk 0:00:44]} 21. Bxf8 {[%clk 0:00:16]}  Bxf8 {[%clk 0:00:44]} 22. Qf2 {[%clk 0:00:16]}  Bg7 {[%clk 0:00:43]} 23. dxc5 {[%clk 0:00:15]}  bxc5 {[%clk 0:00:39]} 24. Rad1 {[%clk 0:00:15]}  Qe7 {[%clk 0:00:39]} 25. Qg3 {[%clk 0:00:15]}  h6 {[%clk 0:00:30]} 26. Kh1 {[%clk 0:00:15]}  Rf8 {[%clk 0:00:26]} 27. Qd6 {[%clk 0:00:14]}  Qe4 {[%clk 0:00:24]} 28. Rd2 {[%clk 0:00:12]}  Qxc4 {[%clk 0:00:21]} 29. Rxf6 {[%clk 0:00:12]}  Bxf6 {[%clk 0:00:17]} 30. Qxf6 {[%clk 0:00:13]}  Qe4 {[%clk 0:00:13]} 31. h3 {[%clk 0:00:11]}  Qg6 {[%clk 0:00:10]} 32. Qe5 {[%clk 0:00:11]}  Qc6 {[%clk 0:00:07]} 33. Kg1 {[%clk 0:00:08]}  Re8 {[%clk 0:00:07]} 34. Qg3 {[%clk 0:00:06]}  Qe6 {[%clk 0:00:04]} 35. Kf2 {[%clk 0:00:06]}  Qf6+ {[%clk 0:00:03]} 36. Kg1 {[%clk 0:00:07]}  Kg7 {[%clk 0:00:03]} 37. Rd7 {[%clk 0:00:06]}  Bc6 {[%clk 0:00:00]} 38. Rd6 {[%clk 0:00:06]} 1-0


[Site "https://www.chess.com"]

[Event "Titled Tuesday Blitz July 11 Early 2023"]
[White "Jaskolka, Tomasz"]
[Black "Romero Ruscalleda, Josep"]
[WhiteFideId "1170791"]
[BlackFideId "2231859"]
[WhiteElo "2545"]
[BlackElo "2400"]
[Result "0-1"]
[Round "5"]
[TimeControl "180+2"]
[Date "2023.07.11"]
[WhiteClock "0:00:13"]
[BlackClock "0:00:34"]
[Board "111"]

1. d4 {[%clk 0:03:00]}  g6 {[%clk 0:03:00]} 2. Nc3 {[%clk 0:02:59]}  Bg7 {[%clk 0:03:00]} 3. e4 {[%clk 0:02:59]}  d6 {[%clk 0:03:00]} 4. Bf4 {[%clk 0:02:59]}  a6 {[%clk 0:03:00]} 5. Nf3 {[%clk 0:02:59]}  b5 {[%clk 0:03:00]} 6. a3 {[%clk 0:03:00]}  Bb7 {[%clk 0:03:00]} 7. Bd3 {[%clk 0:03:00]}  Nd7 {[%clk 0:03:00]} 8. O-O {[%clk 0:03:00]}  c5 {[%clk 0:02:59]} 9. Be3 {[%clk 0:02:45]}  cxd4 {[%clk 0:02:55]} 10. Nxd4 {[%clk 0:02:44]}  Ngf6 {[%clk 0:02:54]} 11. f3 {[%clk 0:02:44]}  O-O {[%clk 0:02:52]} 12. Kh1 {[%clk 0:02:43]}  Rc8 {[%clk 0:02:50]} 13. Nb3 {[%clk 0:02:37]}  Ne5 {[%clk 0:02:47]} 14. Qe2 {[%clk 0:02:35]}  Nxd3 {[%clk 0:02:42]} 15. cxd3 {[%clk 0:02:34]}  Nd7 {[%clk 0:02:37]} 16. d4 {[%clk 0:02:27]}  Nb6 {[%clk 0:02:33]} 17. Na5 {[%clk 0:02:24]}  Ba8 {[%clk 0:02:32]} 18. Rac1 {[%clk 0:02:12]}  Nc4 {[%clk 0:02:10]} 19. Nxc4 {[%clk 0:02:08]}  Rxc4 {[%clk 0:02:10]} 20. Rfd1 {[%clk 0:02:02]}  Qc7 {[%clk 0:02:04]} 21. Qd3 {[%clk 0:01:34]}  Rc8 {[%clk 0:02:02]} 22. Ne2 {[%clk 0:01:31]}  Rxc1 {[%clk 0:01:33]} 23. Rxc1 {[%clk 0:01:30]}  Qd7 {[%clk 0:01:34]} 24. Rxc8+ {[%clk 0:01:27]}  Qxc8 {[%clk 0:01:34]} 25. Qc3 {[%clk 0:01:27]}  Qxc3 {[%clk 0:01:30]} 26. bxc3 {[%clk 0:01:18]}  Kf8 {[%clk 0:01:30]} 27. Kg1 {[%clk 0:01:19]}  Ke8 {[%clk 0:01:30]} 28. Kf2 {[%clk 0:01:19]}  Kd7 {[%clk 0:01:30]} 29. Ke1 {[%clk 0:01:20]}  e6 {[%clk 0:01:28]} 30. Kd2 {[%clk 0:01:20]}  Bf8 {[%clk 0:01:26]} 31. Kc2 {[%clk 0:00:55]}  d5 {[%clk 0:01:25]} 32. exd5 {[%clk 0:00:56]}  Bxd5 {[%clk 0:01:19]} 33. Kb2 {[%clk 0:00:56]}  Bc4 {[%clk 0:01:19]} 34. Ng3 {[%clk 0:00:45]}  Bd6 {[%clk 0:01:18]} 35. Ne4 {[%clk 0:00:43]}  Bxh2 {[%clk 0:01:14]} 36. Nf6+ {[%clk 0:00:29]}  Ke7 {[%clk 0:01:14]} 37. Nxh7 {[%clk 0:00:30]}  f6 {[%clk 0:01:13]} 38. g4 {[%clk 0:00:13]}  g5 {[%clk 0:01:09]} 39. d5 {[%clk 0:00:09]}  Bxd5 {[%clk 0:01:01]} 40. Bd4 {[%clk 0:00:09]}  e5 {[%clk 0:00:53]} 41. Bc5+ {[%clk 0:00:09]}  Kf7 {[%clk 0:00:53]} 42. Nf8 {[%clk 0:00:10]}  Bxf3 {[%clk 0:00:53]} 43. Nd7 {[%clk 0:00:09]}  Bxg4 {[%clk 0:00:49]} 44. Nb8 {[%clk 0:00:09]}  Bc8 {[%clk 0:00:49]} 45. Nc6 {[%clk 0:00:06]}  g4 {[%clk 0:00:47]} 46. Kc2 {[%clk 0:00:02]}  g3 {[%clk 0:00:47]} 47. Nb4 {[%clk 0:00:03]}  g2 {[%clk 0:00:45]} 48. Nd5 {[%clk 0:00:04]}  Bf5+ {[%clk 0:00:43]} 49. Kd2 {[%clk 0:00:04]}  Be4 {[%clk 0:00:38]} 50. Nc7 {[%clk 0:00:03]}  Bb7 {[%clk 0:00:37]} 51. Ke2 {[%clk 0:00:02]}  g1=Q {[%clk 0:00:37]} 52. Bxg1 {[%clk 0:00:01]}  Bxg1 {[%clk 0:00:38]} 53. c4 {[%clk 0:00:01]}  bxc4 {[%clk 0:00:36]} 54. a4 {[%clk 0:00:02]}  Bb6 {[%clk 0:00:34]} 55. Nb5 {[%clk 0:00:02]}  axb5 {[%clk 0:00:34]} 56. axb5 {[%clk 0:00:03]}  Ke6 {[%clk 0:00:34]} 57. Kd2 {[%clk 0:00:04]}  Kd5 {[%clk 0:00:34]} 58. Kc3 {[%clk 0:00:04]}  Kc5 {[%clk 0:00:34]} 59. Kd2 {[%clk 0:00:05]}  Kxb5 {[%clk 0:00:35]} 60. Kc3 {[%clk 0:00:06]}  Kc5 {[%clk 0:00:35]} 61. Kd2 {[%clk 0:00:06]}  Kd4 {[%clk 0:00:35]} 62. Ke2 {[%clk 0:00:07]}  c3 {[%clk 0:00:35]} 63. Kd1 {[%clk 0:00:08]}  Kd3 {[%clk 0:00:35]} 64. Kc1 {[%clk 0:00:08]}  c2 {[%clk 0:00:35]} 65. Kb2 {[%clk 0:00:08]}  Kd2 {[%clk 0:00:36]} 66. Kb3 {[%clk 0:00:09]}  c1=Q {[%clk 0:00:35]} 67. Kb4 {[%clk 0:00:09]}  Qc5+ {[%clk 0:00:35]} 68. Ka4 {[%clk 0:00:10]}  Bc6+ {[%clk 0:00:34]} 69. Kb3 {[%clk 0:00:11]}  Qc3+ {[%clk 0:00:34]} 70. Ka2 {[%clk 0:00:11]}  Bd5+ {[%clk 0:00:34]} 71. Kb1 {[%clk 0:00:12]}  Qc2+ {[%clk 0:00:34]} 72. Ka1 {[%clk 0:00:13]}  Qa2# {[%clk 0:00:34]} 0-1


[Site "https://www.chess.com"]

[Event "Titled Tuesday Blitz July 11 Early 2023"]
[White "Goswami, Vedant"]
[Black "Palencia Morales, Wilson Guillermo"]
[WhiteFideId "5003725"]
[BlackFideId "4401859"]
[WhiteElo "2383"]
[BlackElo "2542"]
[Result "1-0"]
[Round "5"]
[TimeControl "180+2"]
[Date "2023.07.11"]
[WhiteClock "0:00:23"]
[BlackClock "0:00:00"]
[Board "112"]

1. d4 {[%clk 0:03:00]}  Nf6 {[%clk 0:02:52]} 2. Nf3 {[%clk 0:02:56]}  c5 {[%clk 0:02:49]} 3. e3 {[%clk 0:02:53]}  g6 {[%clk 0:02:48]} 4. Be2 {[%clk 0:02:50]}  Bg7 {[%clk 0:02:48]} 5. O-O {[%clk 0:02:51]}  O-O {[%clk 0:02:47]} 6. Nc3 {[%clk 0:02:36]}  d6 {[%clk 0:02:43]} 7. d5 {[%clk 0:02:32]}  Bg4 {[%clk 0:02:41]} 8. Nd2 {[%clk 0:02:29]}  Bxe2 {[%clk 0:02:42]} 9. Qxe2 {[%clk 0:02:29]}  a6 {[%clk 0:02:42]} 10. a4 {[%clk 0:02:29]}  Nbd7 {[%clk 0:02:38]} 11. a5 {[%clk 0:02:26]}  Ne8 {[%clk 0:02:31]} 12. Nc4 {[%clk 0:02:24]}  Nc7 {[%clk 0:02:24]} 13. e4 {[%clk 0:02:22]}  Nb5 {[%clk 0:02:21]} 14. Qd3 {[%clk 0:02:06]}  Nd4 {[%clk 0:02:14]} 15. Ne2 {[%clk 0:02:01]}  f5 {[%clk 0:02:06]} 16. exf5 {[%clk 0:01:55]}  Rxf5 {[%clk 0:01:52]} 17. c3 {[%clk 0:01:54]}  Nxe2+ {[%clk 0:01:38]} 18. Qxe2 {[%clk 0:01:52]}  Rf7 {[%clk 0:01:12]} 19. Bg5 {[%clk 0:01:48]}  Ne5 {[%clk 0:00:54]} 20. Rfe1 {[%clk 0:01:31]}  h6 {[%clk 0:00:51]} 21. Bh4 {[%clk 0:01:23]}  g5 {[%clk 0:00:50]} 22. Bg3 {[%clk 0:01:22]}  Nxc4 {[%clk 0:00:46]} 23. Qxc4 {[%clk 0:01:22]}  Qd7 {[%clk 0:00:46]} 24. Re6 {[%clk 0:01:21]}  Rf6 {[%clk 0:00:44]} 25. Rae1 {[%clk 0:01:19]}  Rxe6 {[%clk 0:00:44]} 26. Rxe6 {[%clk 0:01:15]}  Rf8 {[%clk 0:00:43]} 27. Qe4 {[%clk 0:01:12]}  Rf7 {[%clk 0:00:40]} 28. h4 {[%clk 0:01:12]}  Bf6 {[%clk 0:00:10]} 29. hxg5 {[%clk 0:01:09]}  hxg5 {[%clk 0:00:10]} 30. Qg6+ {[%clk 0:01:03]}  Rg7 {[%clk 0:00:09]} 31. Qf5 {[%clk 0:01:03]}  Qa4 {[%clk 0:00:07]} 32. Re1 {[%clk 0:00:54]}  Qxa5 {[%clk 0:00:05]} 33. Bxd6 {[%clk 0:00:52]}  Qb6 {[%clk 0:00:02]} 34. Qe6+ {[%clk 0:00:43]}  Kh7 {[%clk 0:00:02]} 35. Qe4+ {[%clk 0:00:41]}  Kg8 {[%clk 0:00:02]} 36. Qe6+ {[%clk 0:00:40]}  Kh7 {[%clk 0:00:02]} 37. Qf5+ {[%clk 0:00:26]}  Kg8 {[%clk 0:00:00]} 38. Be5 {[%clk 0:00:23]} 1-0


[Site "https://www.chess.com"]

[Event "Titled Tuesday Blitz July 11 Early 2023"]
[White "Malyi, Viacheslav"]
[Black "Jegorovas, Aleksandras"]
[WhiteFideId "14123983"]
[BlackFideId "12801950"]
[WhiteElo "2541"]
[BlackElo "2367"]
[Result "0-1"]
[Round "5"]
[TimeControl "180+2"]
[Date "2023.07.11"]
[WhiteClock "0:00:46"]
[BlackClock "0:01:40"]
[Board "113"]

1. e4 {[%clk 0:03:00]}  e6 {[%clk 0:02:58]} 2. d4 {[%clk 0:02:59]}  d5 {[%clk 0:02:58]} 3. Nc3 {[%clk 0:03:00]}  Bb4 {[%clk 0:02:58]} 4. e5 {[%clk 0:03:00]}  c5 {[%clk 0:02:58]} 5. a3 {[%clk 0:03:00]}  Bxc3+ {[%clk 0:02:58]} 6. bxc3 {[%clk 0:03:01]}  Qa5 {[%clk 0:02:59]} 7. Bd2 {[%clk 0:02:57]}  Qa4 {[%clk 0:02:59]} 8. Qb1 {[%clk 0:02:56]}  c4 {[%clk 0:02:59]} 9. Qd1 {[%clk 0:02:57]}  Ne7 {[%clk 0:02:57]} 10. Nh3 {[%clk 0:02:56]}  Nbc6 {[%clk 0:02:57]} 11. Nf4 {[%clk 0:02:56]}  Bd7 {[%clk 0:02:52]} 12. Nh5 {[%clk 0:02:55]}  Rg8 {[%clk 0:02:47]} 13. g3 {[%clk 0:02:53]}  O-O-O {[%clk 0:02:46]} 14. h4 {[%clk 0:02:53]}  Rdf8 {[%clk 0:02:46]} 15. Bh3 {[%clk 0:02:51]}  Kb8 {[%clk 0:02:45]} 16. O-O {[%clk 0:02:49]}  Ka8 {[%clk 0:02:44]} 17. Re1 {[%clk 0:02:44]}  Nd8 {[%clk 0:02:38]} 18. Ra2 {[%clk 0:02:39]}  f5 {[%clk 0:02:36]} 19. Qb1 {[%clk 0:02:32]}  Be8 {[%clk 0:02:33]} 20. Nf4 {[%clk 0:02:30]}  h6 {[%clk 0:02:33]} 21. h5 {[%clk 0:02:29]}  Bd7 {[%clk 0:02:27]} 22. Qb4 {[%clk 0:02:27]}  Qxb4 {[%clk 0:02:23]} 23. axb4 {[%clk 0:02:28]}  Nf7 {[%clk 0:02:20]} 24. Rea1 {[%clk 0:02:19]}  a6 {[%clk 0:02:20]} 25. Bf1 {[%clk 0:02:17]}  Ng5 {[%clk 0:02:19]} 26. Kg2 {[%clk 0:02:06]}  Ne4 {[%clk 0:02:18]} 27. Be1 {[%clk 0:02:06]}  Kb8 {[%clk 0:02:16]} 28. f3 {[%clk 0:02:05]}  Ng5 {[%clk 0:02:14]} 29. Be2 {[%clk 0:02:02]}  Be8 {[%clk 0:02:04]} 30. Bd2 {[%clk 0:02:01]}  Bb5 {[%clk 0:02:03]} 31. Kf2 {[%clk 0:01:58]}  Kc8 {[%clk 0:02:00]} 32. Ra5 {[%clk 0:01:57]}  Kd7 {[%clk 0:02:00]} 33. Rh1 {[%clk 0:01:48]}  Nf7 {[%clk 0:01:58]} 34. Rha1 {[%clk 0:01:43]}  Ng5 {[%clk 0:01:57]} 35. R5a2 {[%clk 0:01:40]}  Nf7 {[%clk 0:01:57]} 36. Rh1 {[%clk 0:01:41]}  Ng5 {[%clk 0:01:57]} 37. Raa1 {[%clk 0:01:31]}  Nf7 {[%clk 0:01:57]} 38. Ra5 {[%clk 0:01:31]}  Ng5 {[%clk 0:01:57]} 39. Ng6 {[%clk 0:01:32]}  Re8 {[%clk 0:01:49]} 40. Bxg5 {[%clk 0:01:24]}  hxg5 {[%clk 0:01:48]} 41. Raa1 {[%clk 0:01:20]}  Nxg6 {[%clk 0:01:47]} 42. hxg6 {[%clk 0:01:21]}  Rh8 {[%clk 0:01:48]} 43. Rh7 {[%clk 0:01:18]}  Rxh7 {[%clk 0:01:48]} 44. gxh7 {[%clk 0:01:19]}  Rh8 {[%clk 0:01:48]} 45. Rh1 {[%clk 0:01:19]}  Ke7 {[%clk 0:01:49]} 46. Rh5 {[%clk 0:01:18]}  g6 {[%clk 0:01:46]} 47. Rxg5 {[%clk 0:01:10]}  Kf7 {[%clk 0:01:46]} 48. g4 {[%clk 0:01:06]}  f4 {[%clk 0:01:46]} 49. Kg2 {[%clk 0:00:59]}  Kg7 {[%clk 0:01:46]} 50. Bd3 {[%clk 0:00:56]}  Be8 {[%clk 0:01:43]} 51. b5 {[%clk 0:00:51]}  a5 {[%clk 0:01:41]} 52. b6 {[%clk 0:00:51]}  Kh6 {[%clk 0:01:41]} 53. Rf5 {[%clk 0:00:46]}  gxf5 {[%clk 0:01:40]} 0-1


[Site "https://www.chess.com"]